bitfinex/quotes_ETHUSD_20250110
["timestamp","ask_amount","ask_price","bid_price","bid_amount"]
[1736525705742,0.0075,3251.1,3250.2,3.67963053]
[1736525705941,0.0075,3251.1,3250.3,0.03076254]
[1736525706155,0.0075,3251.1,3250.0,0.322]
[1736525706156,0.399147,3251.1,3250.0,0.322]
[1736525706413,0.015,3250.8,3249.8,3.10786301]
[1736525706594,0.015,3250.8,3249.8,0.03076301]
[1736525706756,0.015,3250.8,3250.0,3.07691]
[1736525707097,0.8331,3251.2,3250.3,3.07662]
[1736525707296,0.8331,3251.2,3250.4,0.03076044]
[1736525707502,0.8331,3251.2,3250.8,3.07613]
[1736525707705,0.8331,3251.2,3250.6,3.07633]
[1736525707866,0.0075,3251.1,3250.2,3.07668]
[1736525708193,0.0075,3250.9,3250.1,0.61705574]
[1736525708343,0.015,3251.0,3250.0,3.0769]
[1736525708548,0.391637,3251.1,3250.1,3.10751495]
[1736525708875,0.0075,3250.9,3250.1,0.03076495]
[1736525709073,3.07616,3250.8,3249.8,3.07709]
[1736525709390,0.015,3250.9,3250.0,3.07692]
[1736525709594,0.7706,3250.5,3249.8,0.61576187]
[1736525709892,0.0225,3250.2,3249.0,0.322]
[1736525710109,3.07737,3249.6,3248.9,0.6028231]
[1736525710248,0.0075,3249.9,3248.6,0.440874]
[1736525710249,0.0075,3249.7,3248.6,0.440874]
[1736525710442,0.0075,3249.5,3248.6,3.519114]
[1736525710644,0.0075,3249.5,3248.7,3.46078847]
[1736525710855,0.015,3249.6,3248.7,0.38268847]
[1736525711146,3.09231,3249.6,3248.8,0.03077707]
[1736525711402,3.7545,3250.0,3248.7,3.07815]
[1736525711403,3.83145,3250.0,3248.7,3.07815]
[1736525711545,0.7545,3250.0,3249.2,3.0776]
[1736525711788,0.7545,3250.0,3249.3,0.03077126]
[1736525712006,0.8024,3250.6,3249.3,0.03077126]
[1736525712355,0.8024,3250.6,3250.0,3.07684]
[1736525712551,0.8024,3250.6,3250.1,0.03076426]
[1736525712846,3.87819,3251.2,3250.2,3.07665]
[1736525713007,0.015,3251.1,3250.2,3.10741362]
[1736525713202,3.09089,3251.1,3250.2,0.03076362]
[1736525713403,3.09089,3251.1,3250.0,3.07682]
[1736525713622,0.0075,3250.9,3250.0,3.07682]
[1736525713919,0.0075,3250.9,3250.1,3.10758362]
[1736525714242,0.0075,3250.5,3249.6,0.60666206]
[1736525714446,0.0075,3250.3,3249.4,3.10823028]
[1736525714650,0.0075,3250.4,3249.5,3.07738]
[1736525714941,0.8083,3250.7,3250.2,3.07673]
[1736525715135,0.8083,3250.7,3250.5,3.07638]
[1736525715287,0.8135,3251.1,3250.6,3.07631]
[1736525715641,0.8135,3251.1,3250.7,3.07625]
[1736525715942,0.8135,3251.5,3250.7,3.07625]
[1736525716539,0.8135,3251.5,3250.6,0.60302529]
[1736525716704,0.015,3251.4,3250.3,3.384273]
[1736525717043,0.0075,3251.2,3250.4,3.1072706]
[1736525717248,0.0075,3251.2,3250.5,3.07643]
[1736525717454,0.8135,3251.5,3250.5,3.07643]
[1736525717455,0.8135,3251.5,3250.6,0.03076061]
[1736525717723,0.1685993,3251.9,3251.2,3.07572]
[1736525718026,0.1685993,3251.9,3251.0,3.07588]
[1736525718320,0.1685993,3251.9,3250.9,3.0]
[1736525718526,0.1685993,3251.9,3251.1,3.07587]
[1736525718926,0.1685993,3251.9,3251.2,0.03075398]
[1736525719270,3.09022,3251.8,3250.6,0.8128]
[1736525719437,0.0075,3251.6,3250.7,3.0762]
[1736525719595,0.0075,3251.3,3250.3,0.7506]
[1736525719901,0.0075,3251.3,3250.4,0.03075957]
[1736525720291,0.0075,3251.3,3250.6,0.60449256]
[1736525720491,0.0075,3251.3,3250.6,0.63525214]
[1736525720693,0.0075,3251.3,3250.6,3.63525214]
[1736525721201,0.0075,3251.3,3250.5,3.07637]
[1736525721527,3.0907,3251.3,3250.3,3.07659]
[1736525721737,0.0075,3251.1,3250.3,3.07659]
[1736525721914,0.7532,3251.4,3250.4,0.03076185]
[1736525722118,0.7532,3251.4,3251.1,3.07588]
[1736525722318,0.7532,3251.4,3250.6,3.0]
[1736525722319,0.9456993,3251.9,3251.2,0.03075523]
[1736525722622,0.1685993,3251.9,3251.7,3.07531]
[1736525722932,0.1685993,3251.9,3251.5,3.07541]
[1736525723146,0.1685993,3251.9,3250.7,3.83317]
[1736525723349,0.1685993,3251.9,3251.2,3.0757]
[1736525723654,0.1685993,3251.9,3251.7,3.07527]
[1736525723824,0.1685993,3251.9,3251.6,3.07539]
[1736525724020,0.1685993,3251.9,3251.7,0.03074923]
[1736525724732,0.1685993,3251.9,3251.4,3.07556]
[1736525724932,0.1685993,3251.9,3251.4,0.62870183]
[1736525725604,0.1685993,3251.9,3251.5,0.03075134]
[1736525725806,0.1685993,3251.9,3251.5,3.10623134]
[1736525726033,0.1685993,3251.9,3251.5,0.03075134]
[1736525726446,0.1685993,3251.9,3251.6,3.07537]
[1736525726643,0.1685993,3251.9,3251.7,3.07523]
[1736525726819,0.1685993,3251.9,3251.4,0.62870183]
[1736525727150,0.0075,3251.8,3250.8,0.383317]
[1736525727309,0.7801,3251.7,3250.8,0.61788497]
[1736525727517,0.7801,3251.7,3250.9,3.07606]
[1736525727882,0.7801,3251.7,3250.9,3.07607]
[1736525728049,0.7801,3251.7,3251.0,3.07593]
[1736525728232,0.7801,3251.7,3250.8,0.61788497]
[1736525728233,0.0075,3251.6,3250.8,3.69401497]
[1736525728646,3.484203,3251.6,3250.7,3.0]
[1736525728819,0.408783,3251.6,3250.4,3.07646]
[1736525729014,0.408783,3251.6,3249.9,0.7638]
[1736525729015,0.0075,3251.4,3250.3,0.62970934]
[1736525729327,0.0075,3250.9,3249.6,2.11440453]
[1736525729525,3.07602,3251.0,3249.8,0.61948619]
[1736525729712,3.07607,3250.9,3249.9,3.10776449]
[1736525729913,0.8248,3250.6,3249.8,0.61948619]
[1736525730122,0.8248,3250.6,3249.9,0.03076649]
[1736525730448,0.8173,3250.6,3249.9,3.10774649]
[1736525730613,0.0225,3250.5,3249.9,0.03076649]
[1736525730815,0.0225,3250.5,3249.6,2.11440453]
[1736525731028,0.0075,3250.3,3249.0,3.07787]
[1736525731225,0.0075,3250.2,3249.1,0.695852]
[1736525731429,0.0075,3250.0,3249.3,0.626938]
[1736525731627,3.89152,3250.1,3249.4,0.03077334]
[1736525731628,0.8072,3250.1,3249.4,0.03077334]
[1736525731830,0.8072,3250.1,3249.3,0.626938]
[1736525732355,0.8072,3250.1,3249.3,3.704488]
[1736525732513,3.0772,3249.8,3249.3,0.626938]
[1736525732713,0.0075,3249.7,3248.7,3.3991]
[1736525733018,3.08473,3249.7,3248.7,3.0781]
[1736525733217,0.0075,3249.8,3248.8,3.68133926]
[1736525733432,0.0075,3249.5,3248.7,3.0]
[1736525733629,3.07714,3249.8,3248.7,3.79625779]
[1736525733828,3.07714,3249.8,3248.8,3.07798]
[1736525734030,0.8072,3250.1,3249.1,3.07771]
[1736525734324,3.07742,3249.5,3248.7,1.31027496]
[1736525734476,3.07742,3249.5,3248.1,3.87556]
[1736525734477,0.0075,3249.1,3248.1,3.87556]
[1736525734630,0.0075,3249.1,3247.7,3.07903]
[1736525734631,0.0075,3248.9,3248.4,0.62635986]
[1736525735036,0.0225,3248.9,3248.4,0.62635986]
[1736525735230,0.0225,3248.9,3247.9,3.0]
[1736525735437,0.0225,3248.9,3247.9,0.62599004]
[1736525735745,0.8219,3249.0,3248.1,3.07866]
[1736525735950,0.8088,3249.4,3248.2,1.21402326]
[1736525736136,0.8088,3249.4,3248.2,0.84807883]
[1736525736331,0.8088,3249.4,3248.3,0.55]
[1736525736565,0.8088,3249.4,3248.4,0.03077481]
[1736525736873,0.015,3249.3,3248.4,0.03077658]
[1736525737031,0.8088,3249.4,3248.5,0.61427892]
[1736525737232,0.8088,3249.4,3248.6,0.03077665]
[1736525737438,0.8088,3249.4,3248.5,0.61427892]
[1736525737637,0.8088,3249.4,3248.7,3.07814]
[1736525737857,0.8088,3249.4,3248.5,0.61427892]
[1736525738060,0.8088,3249.4,3248.6,0.36142789]
[1736525738264,0.8088,3249.4,3248.2,0.8173]
[1736525738265,0.0075,3249.3,3248.2,3.0]
[1736525738470,3.10016,3249.3,3248.4,3.61705261]
[1736525738649,0.0075,3249.3,3248.5,0.03078158]
[1736525738835,0.8088,3249.4,3248.5,3.10904158]
[1736525739048,0.8088,3249.4,3248.6,3.07823]
[1736525739235,0.8088,3249.4,3248.7,0.03077817]
[1736525739439,0.8088,3249.4,3248.7,3.10890817]
[1736525739774,0.79,3250.0,3249.0,3.07784]
[1736525740074,3.07719,3249.8,3248.9,3.0]
[1736525740238,3.09976,3249.7,3248.7,3.0]
[1736525740852,3.09976,3249.7,3248.8,0.03077741]
[1736525741047,0.79,3250.0,3249.1,3.07775]
[1736525741232,0.79,3250.0,3249.2,3.41622238]
[1736525741433,0.79,3250.0,3249.0,3.07785]
[1736525741674,0.79,3250.0,3249.1,3.10845324]
[1736525741675,0.0075,3249.9,3249.1,3.10845324]
[1736525742033,0.0075,3249.9,3248.8,3.07798]
[1736525742270,3.08452,3249.9,3248.6,0.55]
[1736525742485,0.0075,3249.6,3248.7,3.07806]
[1736525742681,0.0075,3249.6,3248.2,3.86152]
[1736525742847,0.0075,3249.6,3248.3,3.386152]
[1736525743052,0.0075,3249.7,3248.8,3.70869503]
[1736525743253,0.015,3249.7,3248.8,3.70869503]
[1736525743443,0.015,3249.7,3248.9,3.07789]
[1736525743644,0.015,3249.7,3248.8,3.70870503]
[1736525743975,3.07703,3249.9,3248.8,4.07956553]
[1736525744162,0.015,3249.9,3249.0,3.07785]
[1736525744360,0.015,3249.9,3249.1,0.03077465]
[1736525744578,0.79,3250.0,3249.1,0.03077465]
[1736525744778,0.79,3250.0,3249.7,3.0772]
[1736525744938,0.79,3250.0,3249.6,3.07728]
[1736525745144,0.7633,3250.4,3249.7,3.4156975]
[1736525745572,0.7633,3250.4,3249.8,3.0]
[1736525745781,0.7633,3250.8,3249.9,0.58076367]
[1736525746108,0.7633,3250.8,3250.5,3.07643]
[1736525746237,0.7633,3251.3,3250.7,3.0]
[1736525746643,0.7633,3251.3,3250.3,3.0]
[1736525746897,0.7633,3251.3,3250.4,0.63842901]
[1736525747052,0.7633,3251.3,3250.8,3.07608]
[1736525747685,0.7633,3251.3,3250.5,3.70570726]
[1736525747686,0.7633,3251.3,3250.7,3.0]
[1736525747984,0.7633,3251.3,3250.5,0.62930726]
[1736525748183,3.09831,3251.2,3250.0,0.321]
[1736525748365,0.0075,3251.0,3250.2,3.07668]
[1736525748570,0.0075,3251.0,3250.0,3.39787]
[1736525748804,3.08348,3251.0,3250.2,0.62862919]
[1736525749002,3.08348,3251.0,3250.1,3.0]
[1736525749357,3.08348,3251.0,3250.0,0.321]
[1736525749523,3.08348,3251.0,3250.1,3.07681]
[1736525749685,0.0075,3251.0,3250.2,3.07672]
[1736525749879,0.0075,3251.1,3250.4,3.07652]
[1736525750186,0.7633,3251.3,3250.6,3.07633]
[1736525750389,0.7633,3251.3,3250.7,0.03075909]
[1736525750561,0.0225,3251.2,3249.6,1.1087]
[1736525750767,0.0075,3251.0,3249.6,0.321]
[1736525751091,0.015,3250.7,3249.7,3.0772]
[1736525751397,0.015,3250.7,3249.8,3.07709]
[1736525751806,0.015,3250.7,3249.4,3.0]
[1736525751963,0.015,3250.7,3249.2,0.7877]
[1736525751964,0.8026,3250.3,3249.2,0.7877]
[1736525752159,0.0225,3250.2,3249.2,3.07764]
[1736525752365,0.015,3250.2,3249.3,3.10833259]
[1736525753126,3.09173,3250.2,3249.3,3.07756]
[1736525753327,0.8026,3250.3,3249.4,0.03077191]
[1736525753527,0.8026,3250.3,3249.5,0.31083519]
[1736525753728,0.8026,3250.3,3249.8,3.0]
[1736525753930,0.0075,3250.7,3249.9,3.10770812]
[1736525754104,0.7802,3250.7,3249.9,0.03076812]
[1736525754293,0.7802,3250.7,3249.7,0.03076732]
[1736525754495,0.015,3250.4,3249.1,0.7852]
[1736525754694,3.09178,3250.2,3249.5,0.61903044]
[1736525754928,0.404798,3250.2,3249.5,0.61903044]
[1736525755351,0.404798,3250.2,3249.4,0.0307717]
[1736525755494,0.8062,3250.3,3249.3,0.03077173]
[1736525755692,0.8062,3250.3,3249.6,3.0]
[1736525756433,0.8062,3250.3,3249.7,0.03076851]
[1736525756730,0.8062,3250.3,3249.3,3.07758]
[1736525756935,0.015,3250.2,3249.2,0.60467736]
[1736525757093,0.8062,3250.3,3249.4,0.03077173]
[1736525757289,0.8062,3250.3,3249.6,3.0]
[1736525757490,0.8154,3251.3,3249.7,0.65176679]
[1736525757751,3.07597,3251.1,3250.0,3.07686]
[1736525757960,0.8154,3251.3,3250.1,0.03076377]
[1736525758095,0.8154,3251.3,3250.5,3.07642]
[1736525758294,0.8154,3251.3,3250.5,0.03076064]
[1736525758491,0.0075,3251.2,3249.7,0.3]
[1736525758747,3.07582,3251.2,3249.7,0.33076453]
[1736525758951,0.0075,3251.0,3250.2,3.07671]
[1736525759259,0.0075,3251.0,3249.9,3.077]
[1736525759438,0.0075,3251.0,3249.7,0.3]
[1736525759439,0.015,3250.8,3250.0,0.60146853]
[1736525759930,0.015,3250.8,3250.0,0.6322341]
[1736525760132,0.015,3250.8,3250.0,0.60146853]
[1736525760459,0.015,3250.8,3250.0,3.67837853]
[1736525760591,0.0075,3250.6,3249.6,3.07726]
[1736525760794,0.7603,3250.7,3249.4,0.62094231]
[1736525760999,0.7603,3250.7,3249.3,3.0]
[1736525761000,3.07656,3250.4,3249.3,3.0]
[1736525761318,0.0075,3250.0,3249.2,3.69791605]
[1736525761521,0.0075,3250.0,3249.3,3.108352]
[1736525761851,0.7882,3250.1,3249.3,0.40363981]
[1736525762056,0.7882,3250.1,3249.3,0.030772]
[1736525762234,0.7882,3250.1,3249.4,3.07745]
[1736525762433,0.7882,3250.1,3249.2,3.69795605]
[1736525762632,0.7882,3250.1,3249.3,3.07755]
[1736525763331,0.7882,3250.1,3249.4,3.07748]
[1736525763542,0.7882,3250.1,3249.7,3.0772]
[1736525763864,0.7882,3250.1,3249.5,0.33851784]
[1736525763865,0.7882,3250.1,3249.5,3.10811984]
[1736525763995,0.7882,3250.1,3249.5,3.07735]
[1736525764195,0.7882,3250.1,3249.6,0.03076984]
[1736525764466,0.7882,3250.1,3249.2,0.62032605]
[1736525764633,0.7882,3250.1,3249.4,3.07747]
[1736525765153,0.7882,3250.1,3249.2,3.69790605]
[1736525765357,0.0075,3250.0,3249.3,3.07758]
[1736525765543,0.7882,3250.1,3249.4,0.03077192]
[1736525765756,0.7882,3250.1,3249.6,3.07726]
[1736525765956,0.7882,3250.1,3249.2,3.69794605]
[1736525766169,0.0075,3250.0,3249.2,4.06770066]
[1736525766369,0.0075,3250.0,3249.2,0.62032605]
[1736525766702,0.7669,3249.6,3248.4,3.07843]
[1736525766908,0.7669,3249.6,3248.6,3.0]
[1736525767107,0.7669,3250.1,3249.7,3.07718]
[1736525767397,0.7669,3250.1,3249.3,3.07755]
[1736525767583,0.7669,3250.1,3249.5,3.07734]
[1736525767741,0.7669,3250.1,3249.6,0.03076859]
[1736525767946,0.7932,3250.6,3249.6,0.03076859]
[1736525768482,0.7932,3250.6,3249.9,3.077]
[1736525768669,0.7932,3250.6,3249.8,3.07709]
[1736525769088,0.7932,3250.6,3249.5,3.07734]
[1736525769089,3.07676,3250.2,3249.2,3.0776]
[1736525769399,3.07696,3250.0,3249.1,3.07776]
[1736525769708,3.08428,3250.2,3249.2,3.10835209]
[1736525770003,0.8398,3249.7,3248.7,3.07808]
[1736525770326,0.8398,3249.7,3248.3,3.785622]
[1736525770327,0.8398,3249.7,3248.3,0.386152]
[1736525770451,0.8323,3249.0,3247.8,3.07895]
[1736525770801,0.7704,3248.6,3247.6,3.69369136]
[1736525771004,3.07845,3248.4,3247.6,3.61451136]
[1736525771204,0.0075,3248.2,3247.6,0.61451136]
[1736525771502,3.84865,3248.6,3247.7,0.03078816]
[1736525771652,3.07844,3248.4,3247.6,0.61451136]
[1736525772026,0.0075,3248.5,3247.6,0.61451136]
[1736525772156,3.07844,3248.4,3247.6,0.61451136]
[1736525772494,0.8257,3249.3,3248.3,3.07851]
[1736525772700,3.9033,3249.3,3248.4,0.307851]
[1736525772984,3.9033,3249.3,3247.8,0.61116899]
[1736525772985,0.0075,3248.7,3247.8,0.61116899]
[1736525773182,0.0075,3248.7,3247.8,3.69016899]
[1736525773564,0.0075,3248.6,3247.6,3.07916]
[1736525773875,0.8041,3248.4,3247.6,3.07916]
[1736525774187,0.8041,3248.4,3247.7,0.03078719]
[1736525774381,0.8041,3248.4,3247.8,0.31099472]
[1736525774682,0.015,3248.3,3247.6,0.63071505]
[1736525774884,0.015,3248.3,3247.2,3.07949]
[1736525775087,3.09361,3248.3,3247.2,3.07949]
[1736525775583,0.015,3248.3,3247.4,3.07936]
[1736525776372,0.0075,3248.1,3247.2,3.699208]
[1736525776714,0.0075,3248.1,3247.4,3.07936]
[1736525777609,3.49463116,3249.0,3247.4,0.7659]
[1736525777818,0.8016,3248.9,3248.5,3.07833]
[1736525777963,0.8016,3248.9,3247.7,0.55]
[1736525778166,0.8016,3248.9,3248.0,0.55]
[1736525778402,0.8016,3250.0,3248.4,0.55]
[1736525778606,0.8016,3250.0,3248.5,0.03077416]
[1736525778766,0.015,3249.9,3249.2,3.07762]
[1736525779092,0.015,3249.9,3248.8,0.60482726]
[1736525779263,0.0075,3249.4,3248.4,3.07836]
[1736525779467,0.0075,3249.2,3248.5,3.07832]
[1736525779663,0.0075,3249.2,3248.6,3.07822]
[1736525779965,0.8097,3249.3,3248.9,3.07788]
[1736525780268,0.8097,3249.3,3248.7,0.0307806]
[1736525780464,0.8097,3249.3,3248.8,3.07805]
[1736525780667,0.7693,3250.5,3248.9,0.5807768]
[1736525781004,0.7693,3250.5,3249.4,3.07749]
[1736525781302,0.7693,3250.5,3249.6,3.0772]
[1736525781507,0.015,3250.4,3249.7,3.07719]
[1736525781710,0.7693,3250.5,3250.2,3.07672]
[1736525782004,0.7693,3250.5,3250.0,3.0769]
[1736525782383,0.7693,3250.5,3250.1,3.07676]
[1736525782706,0.7693,3250.5,3250.2,3.07665]
[1736525784019,0.015,3250.3,3248.4,3.07835]
[1736525784324,0.015,3250.3,3249.2,0.6053206]
[1736525784545,0.015,3250.3,3249.6,3.07726]
[1736525784707,0.015,3250.2,3249.6,3.07726]
[1736525784905,0.7693,3250.5,3249.3,0.0307714]
[1736525785079,3.07656,3250.4,3249.4,3.07745]
[1736525785281,0.0075,3250.1,3249.4,3.07745]
[1736525785494,0.0075,3250.1,3249.2,0.6053206]
[1736525785697,0.0075,3250.1,3249.4,3.07741]
[1736525785906,0.015,3250.1,3249.1,3.0]
[1736525786106,0.015,3250.1,3248.7,0.7922]
[1736525786314,0.767,3250.2,3249.1,3.07777]
[1736525786497,0.767,3250.2,3248.9,0.62838969]
[1736525786498,0.767,3250.2,3250.1,3.07682]
[1736525786679,0.015,3251.1,3249.5,3.78986711]
[1736525786879,0.015,3251.1,3249.6,3.0773]
[1736525787222,0.015,3251.1,3249.7,3.0772]
[1736525787423,0.7863,3251.2,3249.9,0.55]
[1736525787625,0.7863,3251.2,3250.9,3.07601]
[1736525787921,0.7863,3251.2,3250.6,0.03075905]
[1736525788123,0.7863,3251.2,3250.8,3.07609]
[1736525788325,0.7863,3251.2,3251.0,3.07594]
[1736525788525,0.7889,3251.8,3251.1,3.10663713]
[1736525788884,0.7889,3251.8,3251.2,3.07571]
[1736525789084,0.7889,3251.8,3251.6,3.07539]
[1736525789387,0.7889,3251.8,3251.3,0.03075222]
[1736525789608,0.7889,3251.8,3251.6,3.07536]
[1736525789829,0.7889,3251.8,3251.4,3.07558]
[1736525790183,0.0075,3251.7,3249.7,7.27294714]
[1736525790408,0.7889,3251.8,3250.8,0.03075687]
[1736525790622,0.7889,3251.8,3251.2,3.07574]
[1736525790845,0.7889,3251.8,3250.9,0.03075535]
[1736525791045,0.1685993,3251.9,3251.8,3.07521]
[1736525791608,0.1685993,3251.9,3251.8,3.10595827]
[1736525791803,0.1685993,3251.9,3251.3,0.62050092]
[1736525792035,0.1685993,3251.9,3251.6,3.07533]
[1736525792246,0.1685993,3251.9,3251.3,0.62050092]
[1736525792551,0.1685993,3251.9,3251.5,3.07542]
[1736525792848,0.1685993,3251.9,3251.8,3.07521]
[1736525794963,0.0431993,3251.9,3251.8,3.07521]
[1736525795105,0.0431993,3251.9,3251.8,6.10596004]
[1736525795305,0.0431993,3251.9,3251.8,6.07521]
[1736525796956,9.3e-06,3251.9,3251.8,6.94521]
[1736525797141,9.3e-06,3251.9,3251.8,8.12614725]
[1736525797725,9.3e-06,3251.9,3251.8,8.14864725]
[1736525797948,9.3e-06,3251.9,3251.8,8.89964725]
[1736525798251,9.3e-06,3251.9,3251.8,9.20421612]
[1736525798423,9.3e-06,3251.9,3251.8,6.20421612]
[1736525798749,9.3e-06,3251.9,3251.3,0.7735]
[1736525799052,9.3e-06,3251.9,3251.4,3.07552]
[1736525799260,9.3e-06,3251.9,3251.5,0.03075256]
[1736525799565,9.3e-06,3251.9,3251.8,6.07521]
[1736525799712,0.7735,3253.7,3252.6,3.07446]
[1736525799910,0.7735,3253.7,3252.7,3.07428]
[1736525800135,0.015,3253.6,3252.8,3.07426]
[1736525800321,0.015,3253.6,3252.6,3.07443]
[1736525800551,3.08855,3253.6,3252.2,3.0]
[1736525800708,0.015,3253.6,3252.3,0.03074045]
[1736525801048,0.015,3253.6,3252.8,3.07424]
[1736525801435,0.015,3253.6,3252.6,3.07443]
[1736525801639,0.0075,3253.0,3252.2,3.07478]
[1736525801960,0.8023,3252.8,3251.4,0.7974]
[1736525802115,0.0225,3252.6,3251.5,3.07549]
[1736525802312,0.015,3252.4,3251.6,3.07533]
[1736525802515,0.015,3252.4,3251.0,0.7974]
[1736525802516,3.07484,3252.2,3251.3,0.61595674]
[1736525802757,0.0075,3251.9,3251.0,3.07592]
[1736525802923,3.09763,3251.9,3250.8,3.07613]
[1736525803122,0.0225,3251.9,3250.3,0.32]
[1736525803346,0.0075,3251.6,3250.8,3.0]
[1736525803533,0.0075,3251.6,3250.2,0.8087]
[1736525803894,0.781,3251.7,3251.3,3.07569]
[1736525804036,3.0,3252.2,3251.3,3.07569]
[1736525804037,0.7557,3252.2,3251.4,3.07556]
[1736525804830,0.7557,3252.2,3250.8,0.6079525]
[1736525804831,0.0225,3252.1,3250.8,0.6079525]
[1736525805157,0.0075,3252.1,3251.3,3.07566]
[1736525805474,0.0225,3252.1,3251.3,3.07566]
[1736525805671,0.0075,3252.1,3251.5,3.07549]
[1736525805972,0.8029,3252.0,3250.8,0.6079525]
[1736525806174,0.8254,3251.8,3251.0,3.07597]
[1736525806471,0.8254,3251.8,3250.9,3.07599]
[1736525806970,0.8254,3251.8,3250.8,0.6079525]
[1736525807149,0.0075,3251.5,3250.1,1.0733]
[1736525807345,0.8029,3251.8,3250.6,0.6138068]
[1736525807562,0.8029,3251.8,3251.1,3.0758]
[1736525807869,0.7689,3251.6,3250.8,3.07614]
[1736525808077,0.7689,3251.6,3250.9,0.03075994]
[1736525808249,0.7689,3251.6,3250.8,3.07612]
[1736525808449,0.7689,3251.6,3251.2,3.07573]
[1736525808754,0.7689,3251.6,3251.3,0.03075624]
[1736525808946,0.7689,3251.6,3250.7,0.55]
[1736525808947,0.8275,3252.8,3251.1,3.07582]
[1736525809173,0.8275,3252.8,3251.3,3.0]
[1736525809380,0.8275,3252.8,3252.3,3.07473]
[1736525809551,0.8275,3252.8,3251.4,3.62559]
[1736525809733,0.8275,3252.8,3251.5,3.662559]
[1736525809935,0.8275,3252.8,3252.3,3.07473]
[1736525810239,0.8275,3252.8,3251.9,3.07512]
[1736525810441,0.8161,3253.2,3252.7,3.07436]
[1736525810663,0.8161,3253.2,3252.9,3.07417]
[1736525810864,0.8161,3253.2,3252.5,3.07454]
[1736525811049,0.8161,3253.2,3252.6,0.307454]
[1736525811376,0.8161,3253.2,3252.7,0.03074061]
[1736525811676,0.8161,3253.2,3252.9,3.07415]
[1736525811973,0.8161,3253.2,3252.8,3.07424]
[1736525812187,0.8161,3253.2,3252.9,3.07417]
[1736525812539,0.8161,3253.2,3253.0,3.07399]
[1736525812881,0.8161,3253.2,3252.8,3.07425]
[1736525813055,0.8161,3253.2,3252.9,0.03073985]
[1736525813267,0.8161,3253.2,3253.0,3.07407]
[1736525814235,0.8161,3253.2,3252.6,0.91584032]
[1736525814585,0.8161,3253.2,3252.7,3.07436]
[1736525814878,0.8161,3253.2,3252.9,3.07417]
[1736525815375,0.7622,3253.6,3253.1,3.07395]
[1736525815578,0.7547,3253.6,3253.2,3.07387]
[1736525815761,0.7547,3253.6,3253.0,3.07406]
[1736525815970,0.8077,3254.8,3253.1,0.34121414]
[1736525816177,0.015,3254.2,3253.4,3.07369]
[1736525816357,0.015,3254.2,3253.3,3.0738]
[1736525816567,0.015,3253.9,3252.6,4.36958632]
[1736525816763,0.0075,3253.6,3252.7,3.07428]
[1736525816962,0.7698,3253.5,3252.8,3.07425]
[1736525817265,0.7698,3253.5,3252.9,0.03073974]
[1736525817476,0.7698,3253.5,3252.9,3.07413]
[1736525817677,0.7698,3253.5,3253.1,3.07394]
[1736525818057,0.7698,3253.5,3252.6,0.60838632]
[1736525818296,0.7698,3253.5,3252.8,3.07425]
[1736525818509,0.0075,3253.4,3252.6,3.68280632]
[1736525818718,3.466292,3253.4,3252.4,3.0746]
[1736525818912,0.0075,3253.3,3252.4,3.0746]
[1736525819215,0.0075,3253.4,3252.6,3.07446]
[1736525819352,0.7698,3253.5,3252.9,3.07416]
[1736525819553,0.7698,3253.5,3253.1,3.07399]
[1736525819993,0.7698,3253.5,3253.1,0.307399]
[1736525820214,3.07288,3254.3,3252.8,3.0]
[1736525820215,0.7995,3254.1,3253.3,3.0737]
[1736525820392,0.0075,3254.0,3253.3,3.0737]
[1736525820849,0.0075,3254.0,3253.0,0.03073424]
[1736525820850,0.7995,3254.1,3253.4,0.03073422]
[1736525821054,0.7995,3254.1,3253.6,3.07351]
[1736525821299,0.7995,3254.1,3253.8,3.07331]
[1736525821517,0.7995,3254.1,3253.0,3.07408]
[1736525821715,0.7995,3254.1,3253.8,3.07328]
[1736525822352,0.7995,3254.1,3253.1,0.362408]
[1736525822353,0.7995,3254.1,3253.1,3.436308]
[1736525822595,0.7995,3254.1,3252.6,3.07437]
[1736525822596,0.015,3254.0,3253.0,3.07405]
[1736525822758,0.7704,3253.7,3252.8,3.07425]
[1736525823153,0.7704,3253.7,3252.9,0.03073764]
[1736525823459,0.7704,3253.7,3253.1,3.07396]
[1736525823818,0.7704,3253.7,3253.4,3.07362]
[1736525823951,3.07182,3255.4,3253.5,0.307362]
[1736525823952,0.7704,3254.1,3253.5,0.307362]
[1736525824151,0.7704,3254.1,3253.8,3.07332]
[1736525824462,0.7704,3254.1,3253.5,3.307362]
[1736525824673,5.38,3254.8,3254.0,3.07305]
[1736525825009,0.7704,3254.7,3254.0,3.07305]
[1736525825216,0.0075,3254.6,3254.1,3.07303]
[1736525825515,0.7554,3255.4,3254.3,0.7846]
[1736525825825,0.7554,3255.4,3254.4,0.03072502]
[1736525826117,0.7554,3255.8,3255.1,3.0721]
[1736525826274,3.07054,3256.8,3255.1,3.0721]
[1736525826475,0.7554,3256.1,3255.1,6.0721]
[1736525826777,0.7618,3256.5,3255.1,6.76084172]
[1736525827015,3.07094,3256.4,3255.1,7.36867392]
[1736525827316,3.07094,3256.4,3254.5,3.86331]
[1736525827317,0.7618,3255.6,3254.5,3.86331]
[1736525827474,0.7618,3255.6,3254.6,3.03071746]
[1736525827671,0.7618,3255.6,3255.1,3.0721]
[1736525827974,0.7738,3255.9,3255.0,3.10290762]
[1736525828176,0.86899561,3257.1,3255.0,0.03071762]
[1736525828432,0.25,3258.3,3256.1,3.0]
[1736525828773,4.04066254,3257.9,3256.4,0.62613242]
[1736525828919,4.04066254,3257.9,3256.4,0.65683776]
[1736525829119,6.06964,3257.8,3256.4,0.62613242]